bitfinex/quotes_SOLUSD_20240921
["timestamp","ask_amount","ask_price","bid_price","bid_amount"]
[1726884355793,1.71712272,145.62,145.58,0.2482893]
[1726884356275,31.8928265,145.63,145.58,0.2482893]
[1726884358390,1.71712333,145.62,145.58,0.2482893]
[1726884359488,22.7425,145.61,145.58,0.2482893]
[1726884359691,1.71737068,145.6,145.58,0.2482893]
[1726884360187,16.5481,145.59,145.58,0.2482893]
[1726884360366,16.79908,145.59,145.54,0.2482893]
[1726884360566,1.71779932,145.58,145.54,0.2482893]
[1726884361390,22.7425,145.57,145.54,0.2482893]
[1726884361567,1.71803897,145.56,145.54,0.2482893]
[1726884362495,22.7425,145.57,145.54,0.2482893]
[1726884363575,16.5481,145.57,145.54,0.2482893]
[1726884363787,1.71756688,145.56,145.54,0.2482893]
[1726884364507,16.5481,145.57,145.54,0.2482893]
[1726884365293,7.16309109,145.56,145.54,0.2482893]
[1726884369894,1.71793583,145.55,145.54,0.2482893]
[1726884370194,7.16309109,145.56,145.54,0.2482893]
[1726884370986,16.5481,145.57,145.54,0.2482893]
[1726884374985,7.16847076,145.58,145.54,0.2482893]
[1726884375202,7.16847076,145.58,145.55,12.66238956]
[1726884375411,8.178347,145.63,145.56,14.03617062]
[1726884375584,8.178347,145.63,145.58,12.66238956]
[1726884375779,8.178347,145.63,145.59,1.37352423]
[1726884376399,8.14399572,145.63,145.59,1.37352423]
[1726884377795,23.46527478,145.65,145.59,14.03594496]
[1726884378499,23.46527478,145.65,145.59,12.66238956]
[1726884379501,23.46527478,145.65,145.58,12.66238956]
[1726884379808,1.71678481,145.64,145.59,23.776884]
[1726884380102,1.71678481,145.64,145.57,12.66238956]
[1726884380410,30.72468416,145.65,145.57,12.66238956]
[1726884382008,1.71695005,145.64,145.57,23.776884]
[1726884382388,1.71695005,145.64,145.56,23.776884]
[1726884382598,30.72468416,145.65,145.56,12.66238956]
[1726884382799,23.46527478,145.65,145.58,12.66238956]
[1726884383211,23.46527478,145.65,145.59,12.66238956]
[1726884385226,23.46527478,145.65,145.6,14.0357468]
[1726884385507,23.46527478,145.65,145.59,12.66238956]
[1726884385712,23.46527478,145.65,145.6,12.66238956]
[1726884385892,23.46527478,145.65,145.59,12.66238956]
[1726884386207,23.46527478,145.65,145.58,12.66238956]
[1726884386709,23.46527478,145.65,145.57,12.66238956]
[1726884387096,23.46527478,145.65,145.58,12.66238956]
[1726884387296,23.46527478,145.65,145.59,12.66238956]
[1726884387709,23.46527478,145.65,145.59,23.776884]
[1726884390605,1.71672526,145.64,145.54,16.1300893]
[1726884390806,10.26408951,145.64,145.55,32.66238956]
[1726884391017,10.26408951,145.64,145.56,12.66238956]
[1726884391404,8.54736425,145.64,145.56,12.66238956]
[1726884391901,7.16926309,145.63,145.56,12.66238956]
[1726884392216,8.54736425,145.64,145.58,12.66238956]
[1726884392525,8.54736425,145.64,145.58,23.776884]
[1726884393109,10.2642341,145.64,145.58,23.776884]
[1726884393609,10.2642341,145.64,145.57,23.776884]
[1726884394010,8.54736425,145.64,145.57,23.776884]
[1726884394215,10.26426799,145.64,145.57,23.776884]
[1726884397230,10.26426799,145.64,145.56,12.66238956]
[1726884397532,10.26426799,145.64,145.55,12.66238956]
[1726884398207,10.26426799,145.64,145.54,0.2482893]
[1726884398412,0.25098,145.63,145.54,0.2482893]
[1726884400114,0.25098,145.63,145.54,24.0251733]
[1726884400333,1.71733071,145.62,145.54,24.0251733]
[1726884400541,6.0741,145.6,145.54,0.2482893]
[1726884400835,1.71764179,145.59,145.54,0.2482893]
[1726884401831,0.12549,145.58,145.54,0.2482893]
[1726884402032,16.2568,145.56,145.54,0.2482893]
[1726884402237,1.71797011,145.55,145.54,0.2482893]
[1726884402818,1.71789514,145.55,145.54,0.2482893]
[1726884403321,23.42477659,145.56,145.54,0.2482893]
[1726884403707,16.2568,145.56,145.54,0.2482893]
[1726884404126,16.2568,145.56,145.54,1.2482893]
[1726884404623,16.2568,145.56,145.54,0.7482893]
[1726884406232,1.71771978,145.55,145.54,0.7482893]
[1726884412740,16.2568,145.56,145.54,0.7482893]
[1726884413320,1.71789961,145.55,145.54,0.7482893]
[1726884418438,23.41778961,145.56,145.54,0.7482893]
[1726884418624,1.71805209,145.55,145.54,0.7482893]
[1726884420635,23.41778961,145.56,145.54,0.7482893]
[1726884420836,1.71803725,145.55,145.54,0.7482893]
[1726884422120,1.96901725,145.55,145.54,0.7482893]
[1726884422320,0.25098,145.54,145.49,0.3451553]
[1726884422537,1.71849429,145.53,145.49,0.3451553]
[1726884422943,0.25098,145.52,145.49,0.3451553]
[1726884423123,1.71872404,145.51,145.49,0.3451553]
[1726884424820,8.86008227,145.51,145.49,0.3451553]
[1726884426443,7.14135823,145.51,145.49,0.3451553]
[1726884427433,1.71868152,145.5,145.49,0.3451553]
[1726884428853,7.14135823,145.51,145.49,0.3451553]
[1726884431243,8.86003889,145.51,145.49,0.3451553]
[1726884431633,7.14135823,145.51,145.49,0.3451553]
[1726884432235,1.7184347,145.5,145.49,0.3451553]
[1726884432853,7.14135823,145.51,145.49,0.3451553]
[1726884433048,1.71867865,145.5,145.49,0.3451553]
[1726884434454,7.14135823,145.51,145.49,0.3451553]
[1726884435357,1.71868019,145.5,145.49,0.3451553]
[1726884436655,1.96966019,145.5,145.49,0.3451553]
[1726884436874,0.25098,145.5,145.49,0.3451553]
[1726884438652,1.96980017,145.5,145.49,0.3451553]
[1726884439353,0.25098,145.5,145.49,0.3451553]
[1726884440034,7.14135823,145.51,145.49,0.3451553]
[1726884442447,1.71851848,145.5,145.49,0.3451553]
[1726884444554,7.14135823,145.51,145.49,0.3451553]
[1726884444856,16.2568,145.56,145.49,0.3451553]
[1726884445049,7.15977492,145.53,145.49,0.3451553]
[1726884445242,16.2568,145.56,145.49,0.3451553]
[1726884445632,7.15979211,145.53,145.49,0.3451553]
[1726884445839,0.25098,145.55,145.49,0.3451553]
[1726884446143,7.15969662,145.53,145.49,0.3451553]
[1726884451563,1.71825017,145.52,145.49,0.3451553]
[1726884452059,7.15969662,145.53,145.49,0.3451553]
[1726884453267,1.71854413,145.52,145.49,0.3451553]
[1726884454153,0.12549,145.51,145.49,0.3451553]
[1726884454552,6.8728,145.5,145.49,0.3451553]
[1726884454759,1.96989132,145.5,145.49,0.3451553]
[1726884455762,0.25098,145.5,145.49,0.3451553]
[1726884456547,7.41629495,145.5,145.49,0.3451553]
[1726884457856,9.13522716,145.5,145.49,0.3451553]
[1726884458245,50.33522716,145.5,145.49,0.3451553]
[1726884460666,48.61629495,145.5,145.49,0.3451553]
[1726884461262,50.33523898,145.5,145.49,0.3451553]
[1726884462369,50.33523898,145.5,145.44,0.3140932]
[1726884462370,0.25098,145.49,145.44,0.3140932]
[1726884463265,0.12549,145.49,145.44,0.3140932]
[1726884463664,0.25098,145.49,145.44,0.3140932]
[1726884463847,66.94702359,145.49,145.44,0.3140932]
[1726884464250,6.8743,145.47,145.44,0.3140932]
[1726884464477,65.227864,145.49,145.44,0.3140932]
[1726884464678,87.55709674,145.49,145.44,0.3140932]
[1726884464849,0.25098,145.47,145.44,0.3140932]
[1726884466960,7.15594773,145.46,145.44,0.3140932]
[1726884467788,66.94713041,145.45,145.4,0.3451553]
[1726884467993,0.25098,145.45,145.4,0.3451553]
[1726884468477,1.71944409,145.44,145.4,0.3451553]
[1726884469763,0.25098,145.45,145.4,0.3451553]
[1726884470768,1.71943515,145.44,145.4,0.3451553]
[1726884475273,0.12549,145.43,145.4,0.3451553]
[1726884476168,0.12549,145.44,145.4,0.3451553]
[1726884476468,1.71967101,145.43,145.4,0.3451553]
[1726884477288,7.40852507,145.42,145.4,0.3451553]
[1726884477491,1.71978715,145.41,145.4,0.3451553]
[1726884478099,7.40852507,145.42,145.4,0.3451553]
[1726884481210,1.7197644,145.41,145.4,0.3451553]
[1726884481503,7.15754507,145.42,145.4,0.3451553]
[1726884484097,49.27023984,145.5,145.4,0.3451553]
[1726884484393,7.15546591,145.45,145.42,12.71024551]
[1726884484693,16.5837,145.51,145.42,12.71024551]
[1726884484905,7.15362762,145.48,145.42,12.71024551]
[1726884485073,16.5837,145.51,145.42,12.71024551]
[1726884485473,7.15295343,145.48,145.42,12.71024551]
[1726884485778,16.5837,145.51,145.41,12.71024551]
[1726884485982,7.15301636,145.47,145.41,12.71024551]
[1726884486495,16.5837,145.51,145.41,12.71024551]
[1726884486696,7.1530994,145.47,145.41,12.71024551]
[1726884486884,16.5837,145.51,145.42,12.71024551]
[1726884487298,7.1530542,145.47,145.4,13.05540081]
[1726884487602,24.027864,145.49,145.4,0.3451553]
[1726884487901,7.1533214,145.46,145.4,0.3451553]
[1726884488095,24.027864,145.49,145.4,0.3451553]
[1726884488481,7.15340603,145.46,145.4,0.3451553]
[1726884488672,24.027864,145.49,145.4,14.43074204]
[1726884489101,7.15331107,145.46,145.4,13.05540081]
[1726884489307,24.027864,145.49,145.4,13.05540081]
[1726884489484,24.027864,145.49,145.4,0.3451553]
[1726884489689,7.15381021,145.46,145.4,0.3451553]
[1726884490007,24.027864,145.49,145.4,0.3451553]
[1726884490297,7.15400796,145.45,145.4,0.3451553]
[1726884490605,24.027864,145.49,145.4,0.3451553]
[1726884490781,7.15395531,145.45,145.4,0.3451553]
[1726884490982,24.027864,145.49,145.4,0.3451553]
[1726884491494,7.15395531,145.45,145.4,0.3451553]
[1726884491677,24.027864,145.49,145.4,0.3451553]
[1726884491877,7.15374513,145.45,145.4,0.3451553]
[1726884492182,24.027864,145.49,145.4,0.3451553]
[1726884492596,7.15366106,145.45,145.4,0.3451553]
[1726884492802,24.027864,145.49,145.4,0.3451553]
[1726884493111,7.15366106,145.45,145.4,0.3451553]
[1726884493484,24.027864,145.49,145.4,0.3451553]
[1726884493687,7.15345087,145.45,145.4,0.3451553]
[1726884493989,24.027864,145.49,145.4,0.3451553]
[1726884494191,7.15342985,145.45,145.4,0.3451553]
[1726884494392,7.15342985,145.45,145.41,12.71024551]
[1726884494591,7.15342985,145.45,145.4,0.3451553]
[1726884494592,16.5837,145.51,145.42,18.81904551]
[1726884494909,7.62893782,145.53,145.43,12.71024551]
[1726884494910,7.15269408,145.48,145.43,12.71024551]
[1726884495083,1.19663782,145.53,145.44,15.5703]
[1726884495485,7.1514754,145.49,145.44,16.94530182]
[1726884495700,1.19663782,145.53,145.44,16.94530182]
[1726884495897,1.19663782,145.53,145.44,29.65554733]
[1726884496086,7.15177852,145.49,145.44,29.65554733]
[1726884496285,1.19663782,145.53,145.44,29.65554733]
[1726884496486,1.19663782,145.53,145.44,15.5703]
[1726884496797,7.15129729,145.5,145.44,15.5703]
[1726884497099,1.7189293,145.5,145.44,15.5703]
[1726884497301,7.15244734,145.49,145.44,15.5703]
[1726884497512,1.7189277,145.48,145.44,15.5703]
[1726884497710,7.15244734,145.49,145.44,15.5703]
[1726884504014,7.15244734,145.49,145.44,28.28054551]
[1726884504196,7.15244734,145.49,145.46,12.71024551]
[1726884504400,7.15244734,145.49,145.47,18.81904551]
[1726884504600,0.2482893,145.56,145.47,18.81904551]
[1726884504796,7.16513638,145.53,145.47,18.81904551]
[1726884504998,0.2482893,145.56,145.47,18.81904551]
[1726884505393,7.16387328,145.52,145.47,18.81904551]
[1726884505589,0.2482893,145.56,145.47,18.81904551]
[1726884506023,7.163929,145.52,145.47,18.81904551]
[1726884506196,0.25098,145.55,145.47,18.81904551]
[1726884506601,7.16386598,145.52,145.47,18.81904551]
[1726884506801,0.25098,145.55,145.47,18.81904551]
[1726884507201,7.16386598,145.52,145.47,18.81904551]
[1726884507399,1.71828085,145.51,145.47,6.1088]
[1726884507601,7.16454395,145.51,145.47,6.1088]
[1726884507803,1.71854111,145.5,145.47,6.1088]
[1726884508319,7.16454395,145.51,145.47,6.1088]
[1726884510427,1.71854174,145.5,145.47,6.1088]
[1726884510722,7.16454395,145.51,145.47,6.1088]
[1726884512501,1.71871486,145.5,145.44,15.5703]
[1726884513221,0.25098,145.5,145.44,15.5703]
[1726884514610,1.71886279,145.49,145.44,15.5703]
[1726884515508,0.25098,145.48,145.44,15.5703]
[1726884515722,1.71904128,145.47,145.43,6.0109]
[1726884518110,7.16865509,145.46,145.43,6.0109]
[1726884518310,1.7191532,145.45,145.43,6.0109]
[1726884518929,1.7191532,145.45,145.4,16.9929553]
[1726884519813,0.25098,145.45,145.4,16.9929553]
[1726884520522,7.16865509,145.46,145.4,16.9929553]
[1726884524134,1.97017068,145.45,145.4,16.9929553]
[1726884524434,0.25098,145.45,145.4,16.9929553]
[1726884524640,1.71939064,145.44,145.4,16.9929553]
[1726884525003,0.25098,145.45,145.4,16.9929553]
[1726884527029,7.16865509,145.46,145.4,16.9929553]
[1726884530937,1.71926223,145.45,145.4,16.9929553]
[1726884531324,0.12549,145.47,145.4,16.9929553]
[1726884531638,7.16157728,145.44,145.4,16.9929553]
[1726884532037,0.25098,145.47,145.4,16.9929553]
[1726884532226,7.16157728,145.44,145.4,16.9929553]
[1726884532430,1.7192702,145.43,145.4,16.9929553]
[1726884532633,1.97025711,145.47,145.4,16.9929553]
[1726884532819,7.16141962,145.44,145.4,16.9929553]
[1726884533017,1.719284,145.43,145.4,16.9929553]
[1726884533241,1.97037195,145.47,145.4,16.9929553]
[1726884533542,7.16102952,145.43,145.4,16.9929553]
[1726884533834,24.027864,145.47,145.4,16.9929553]
[1726884534039,7.16067866,145.44,145.4,16.9929553]
[1726884534215,25.74725661,145.47,145.4,16.9929553]
[1726884534414,24.027864,145.47,145.4,16.9929553]
[1726884534613,7.16097295,145.43,145.4,16.9929553]
[1726884534837,0.25098,145.45,145.4,16.9929553]
[1726884535026,7.16092623,145.42,145.4,16.9929553]
[1726884535430,1.71939283,145.44,145.4,16.9929553]
[1726884535641,7.15954717,145.42,145.4,16.9929553]
[1726884536537,7.15954717,145.42,145.4,0.3451553]
[1726884536538,1.71939274,145.41,145.4,0.3451553]
[1726884540932,7.15954717,145.42,145.4,0.3451553]
[1726884543040,1.71947631,145.41,145.4,0.3451553]
[1726884547764,7.15954717,145.42,145.4,0.3451553]
[1726884548354,48.35954717,145.42,145.4,0.3451553]
[1726884548558,7.15954717,145.42,145.4,0.3451553]
[1726884557261,1.7196783,145.41,145.4,0.3451553]
[1726884557862,7.15954717,145.42,145.4,0.3451553]
[1726884568764,1.71981388,145.41,145.4,0.3451553]
[1726884570456,7.15954717,145.42,145.4,0.3451553]
[1726884571971,7.15954717,145.42,145.4,20.95686657]
[1726884572180,6.8728,145.5,145.41,15.6132]
[1726884572470,7.16068308,145.45,145.41,28.32344551]
[1726884572672,6.8724,145.51,145.41,28.32344551]
[1726884572673,68.7224,145.51,145.41,28.32344551]
[1726884573047,7.15992918,145.46,145.41,28.32344551]
[1726884573278,68.7224,145.51,145.41,28.32344551]
[1726884573653,7.15984225,145.46,145.41,28.32344551]
[1726884573850,24.027864,145.5,145.41,28.32344551]
[1726884574254,7.15987855,145.46,145.41,28.32344551]
[1726884574471,1.71903712,145.45,145.41,15.6132]
[1726884574977,8.87976788,145.45,145.41,15.6132]
[1726884575559,1.71924579,145.44,145.41,15.6132]
[1726884576459,7.16073076,145.45,145.41,15.6132]
[1726884578965,7.16073076,145.45,145.41,28.32344551]
[1726884579164,62.10098,145.5,145.41,28.32344551]
[1726884579475,7.15416675,145.49,145.41,28.32344551]
[1726884580476,1.71901374,145.48,145.41,28.32344551]
[1726884580676,1.71901079,145.47,145.41,15.6132]
[1726884580854,1.71901079,145.47,145.41,28.32344551]
[1726884581054,7.15416675,145.49,145.41,28.32344551]
[1726884581266,1.71899953,145.48,145.41,15.6132]
[1726884581476,0.12549,145.47,145.41,15.6132]
[1726884582176,1.71915668,145.46,145.41,15.6132]
[1726884583979,0.25098,145.45,145.41,15.6132]
[1726884584283,1.71937815,145.44,145.41,15.6132]
[1726884584457,0.12549,145.46,145.41,15.6132]
[1726884585079,0.12549,145.47,145.41,15.6132]
[1726884585267,0.25098,145.47,145.41,15.6132]
[1726884586382,1.7192519,145.46,145.41,15.6132]
[1726884588796,0.25098,145.45,145.41,15.6132]
[1726884588953,1.71940203,145.44,145.41,15.6132]
[1726884589464,1.71940203,145.44,145.4,6.8712553]
[1726884589985,7.15696918,145.43,145.4,6.8712553]
[1726884592175,1.71953216,145.42,145.4,6.8712553]
[1726884594967,7.15696918,145.43,145.4,6.8712553]
[1726884597270,1.71952393,145.42,145.4,6.8712553]
[1726884597789,7.15696918,145.43,145.4,6.8712553]
[1726884600592,1.71952837,145.42,145.4,6.8712553]
[1726884600795,1.71952837,145.42,145.4,0.3451553]
[1726884601164,0.25098,145.41,145.4,0.3451553]
[1726884601524,0.12549,145.41,145.4,0.3451553]
[1726884601674,0.25098,145.41,145.4,0.3451553]
[1726884601870,7.4199457,145.41,145.4,0.3451553]
[1726884602080,7.1689657,145.41,145.4,0.3451553]
[1726884603685,7.4199457,145.41,145.4,0.3451553]
[1726884603867,9.13981622,145.41,145.4,0.3451553]
[1726884604787,74.21670022,145.41,145.4,0.3451553]
[1726884605087,121.74380022,145.41,145.4,0.3451553]
[1726884606278,120.0239297,145.41,145.4,0.3451553]
[1726884606481,0.25098,145.37,145.35,0.3140932]
[1726884606685,1.72045222,145.36,145.35,0.3140932]
[1726884607192,41.3,145.4,145.35,0.3140932]
[1726884607385,1.72020707,145.39,145.35,0.3140932]
[1726884608372,61.95,145.38,145.35,0.3140932]
[1726884608694,1.97141012,145.37,145.35,0.3140932]
[1726884609896,0.25098,145.37,145.35,0.3140932]
[1726884610479,1.84591699,145.36,145.35,0.3140932]
[1726884610892,1.97140699,145.36,145.35,0.3140932]
[1726884612200,9.14491654,145.36,145.35,0.3140932]
[1726884613092,7.42448955,145.36,145.35,0.3140932]
[1726884613687,7.29899955,145.36,145.35,0.3140932]
[1726884614203,50.44492006,145.36,145.35,0.3140932]
[1726884614403,101.75120406,145.36,145.35,0.3140932]
[1726884615895,100.03077355,145.36,145.35,0.3140932]
[1726884616197,93.15137355,145.36,145.35,0.3140932]
[1726884616702,48.72448955,145.36,145.35,0.3140932]
[1726884617389,50.44507472,145.36,145.35,0.3140932]
[1726884617705,48.72448955,145.36,145.35,0.3140932]
[1726884618483,50.44508217,145.36,145.35,0.3140932]
[1726884618807,48.72448955,145.36,145.35,0.3140932]
[1726884620602,50.44507238,145.36,145.35,0.3140932]
[1726884620905,74.22195638,145.36,145.35,0.3140932]
[1726884621206,81.10135638,145.36,145.35,0.3140932]
[1726884621423,79.38077355,145.36,145.35,0.3140932]
[1726884623110,72.50137355,145.36,145.35,0.3140932]
[1726884624217,121.75138229,145.36,145.35,0.3140932]
[1726884625421,85.327864,145.33,145.32,0.3451553]
[1726884625719,87.04892986,145.33,145.32,0.3451553]
[1726884625891,85.327864,145.33,145.32,0.3451553]
[1726884626201,48.72197405,145.33,145.32,0.3451553]
[1726884626606,72.49885805,145.33,145.32,0.3451553]
[1726884626812,74.21979494,145.33,145.32,0.3451553]
[1726884627114,48.72197405,145.33,145.32,0.3451553]
[1726884627296,7.42197405,145.33,145.32,0.3451553]
[1726884627499,7.17099405,145.33,145.32,0.3451553]
[1726884627713,8.89180577,145.33,145.32,0.3451553]
[1726884628008,7.17099405,145.33,145.32,0.3451553]
[1726884628406,7.17099405,145.33,145.32,23.0531553]
[1726884628606,48.1776,145.4,145.32,23.0531553]
[1726884629003,7.17224049,145.38,145.32,23.0531553]
[1726884630414,7.17224049,145.38,145.32,35.76340081]
[1726884632121,7.17224049,145.38,145.32,23.0531553]
[1726884632931,1.97127181,145.37,145.32,23.0531553]
[1726884633408,0.25098,145.37,145.32,23.0531553]
[1726884634636,7.17224049,145.38,145.32,23.0531553]
[1726884635641,1.7202858,145.37,145.32,23.0531553]
[1726884637030,0.25098,145.37,145.32,23.0531553]
[1726884637219,1.72033069,145.36,145.32,23.0531553]
[1726884638333,0.25098,145.37,145.32,23.0531553]
[1726884639411,8.88180967,145.36,145.32,23.0531553]
[1726884640513,7.16148167,145.36,145.32,23.0531553]
[1726884649033,7.16148167,145.36,145.32,0.3451553]
[1726884649241,0.25098,145.35,145.32,0.3451553]
[1726884649538,7.16148167,145.36,145.32,0.3451553]
[1726884649747,0.25098,145.37,145.32,0.3451553]
[1726884649923,7.17378159,145.35,145.32,0.3451553]
[1726884655740,1.72033384,145.34,145.32,0.3451553]
[1726884656450,7.17378159,145.35,145.32,0.3451553]
[1726884661555,7.17378159,145.35,145.33,12.73224049]
[1726884661853,17.37884962,145.42,145.33,12.73224049]
[1726884662155,7.1720537,145.37,145.33,12.73224049]
[1726884662345,17.37884962,145.42,145.34,12.73224049]
[1726884662653,7.17201368,145.37,145.34,12.73224049]
[1726884662860,0.25098,145.41,145.34,12.73224049]
[1726884663059,1.71998692,145.4,145.34,12.73224049]
[1726884663236,7.17201368,145.37,145.33,12.73224049]
[1726884663434,41.55098,145.41,145.33,12.73224049]
[1726884663731,7.17199003,145.37,145.33,12.73224049]
[1726884664044,41.3,145.44,145.36,35.57684049]
[1726884664356,0.2482893,145.47,145.36,35.57684049]
[1726884664357,7.17083289,145.4,145.37,1.37574051]
[1726884664532,0.2482893,145.47,145.39,35.57684049]
[1726884664731,0.2482893,145.47,145.41,12.73224049]
[1726884664928,7.1691246,145.45,145.41,12.73224049]
[1726884665161,7.1691246,145.45,145.4,12.73224049]
[1726884665339,7.1691246,145.45,145.39,35.57684049]
[1726884666471,1.71920491,145.44,145.39,22.8446]
[1726884669178,0.25098,145.43,145.36,16.3943]
[1726884669462,0.25098,145.41,145.36,16.3943]
[1726884670237,0.12549,145.41,145.36,16.3943]
[1726884670446,0.25098,145.42,145.36,16.3943]
[1726884670643,24.027864,145.43,145.36,16.3943]
[1726884671553,0.25098,145.38,145.32,0.3451553]
[1726884671748,1.72043306,145.37,145.32,0.3451553]
[1726884672060,0.25098,145.36,145.32,0.3451553]
[1726884672254,1.72043114,145.35,145.32,0.3451553]
[1726884675263,7.1746975,145.34,145.32,0.3451553]
[1726884675464,1.72043149,145.33,145.32,0.3451553]
[1726884677652,7.1746975,145.34,145.32,0.3451553]
[1726884680756,1.72032408,145.33,145.32,0.3451553]
[1726884681651,89.00010558,145.39,145.32,0.3451553]
[1726884681863,0.25098,145.37,145.32,0.3451553]
[1726884682751,7.42106647,145.37,145.32,0.3451553]
[1726884683476,41.3,145.36,145.32,0.3451553]
[1726884684166,0.25098,145.35,145.32,0.3451553]
[1726884684982,48.43138,145.35,145.32,0.3451553]
[1726884685271,41.55098,145.35,145.32,0.3451553]
[1726884688371,0.25098,145.35,145.32,0.3451553]
[1726884688583,41.3,145.36,145.32,0.3451553]
[1726884690065,0.12549,145.35,145.32,0.3451553]
[1726884692984,7.29455001,145.35,145.32,0.3451553]
[1726884693482,0.12549,145.34,145.32,0.3451553]
[1726884693986,48.59455001,145.35,145.32,0.3451553]
[1726884694483,7.29455001,145.35,145.32,0.3451553]
[1726884696681,7.16906001,145.35,145.32,0.3451553]
[1726884697386,0.12549,145.37,145.32,0.3451553]
[1726884698458,0.25098,145.37,145.32,0.3451553]
[1726884703961,7.1657168,145.38,145.32,13.07739579]
[1726884704163,7.1657168,145.38,145.34,12.73224049]
[1726884704390,1.19506425,145.43,145.34,12.73224049]
[1726884704695,7.16403536,145.41,145.37,6.1646]
[1726884711890,7.16403536,145.41,145.36,15.4189]
[1726884717296,7.16403536,145.41,145.34,12.73224049]
[1726884717477,0.12549,145.4,145.34,12.73224049]
[1726884718002,0.12549,145.41,145.34,12.73224049]
[1726884718187,7.16568941,145.39,145.34,12.73224049]
[1726884718788,7.16568941,145.39,145.33,6.0854]
[1726884719793,0.25098,145.38,145.33,6.0854]
[1726884721592,0.25098,145.38,145.32,29.40519579]
[1726884722598,0.25098,145.38,145.32,16.6729553]
[1726884722904,0.25098,145.38,145.32,0.3451553]
[1726884728501,0.12549,145.36,145.32,0.3451553]
[1726884730887,7.16656909,145.37,145.32,0.3451553]
[1726884731380,7.13658909,145.37,145.32,0.3451553]
[1726884739203,7.13658909,145.37,145.32,24.1220393]
[1726884739505,20.12549,145.41,145.32,24.1220393]
[1726884741491,0.12549,145.4,145.32,36.85427979]
[1726884744692,0.12549,145.4,145.32,24.1220393]
[1726884744893,0.12549,145.4,145.32,0.3451553]
[1726884748519,0.12549,145.39,145.32,0.3451553]
[1726884758309,0.25098,145.4,145.32,0.3451553]
[1726884758613,20.90098,145.4,145.32,0.3451553]
[1726884758815,0.25098,145.4,145.32,0.3451553]
[1726884761824,41.3,145.42,145.34,12.73224049]
[1726884762202,41.3,145.42,145.34,14.10807988]
[1726884762902,41.3,145.42,145.34,12.73224049]
[1726884763324,0.25098,145.41,145.34,14.10807958]
[1726884763523,0.25098,145.41,145.34,6.10807958]
[1726884765819,0.25098,145.41,145.33,29.05434049]
[1726884766828,0.25098,145.41,145.32,0.3451553]
[1726884768338,7.12808,145.41,145.32,0.3451553]
[1726884769155,0.25098,145.39,145.32,0.3451553]
[1726884770228,0.25098,145.37,145.32,0.3451553]
[1726884771451,24.027864,145.37,145.32,0.3451553]
[1726884771626,72.206864,145.37,145.32,0.3451553]
[1726884772238,41.55098,145.37,145.32,0.3451553]
[1726884772756,15.5735,145.38,145.35,12.73224049]
[1726884772965,15.7505,145.42,145.35,12.73224049]
[1726884775957,0.25098,145.41,145.34,12.73224049]
[1726884776536,0.25098,145.41,145.32,36.85427979]
[1726884776735,0.25098,145.41,145.33,12.73224049]
[1726884779249,20.90098,145.41,145.33,12.73224049]
[1726884779439,0.25098,145.41,145.33,12.73224049]
[1726884780441,0.25098,145.41,145.32,13.07739579]
[1726884782747,28.04565614,145.43,145.32,13.07739579]
[1726884782748,1.19465614,145.43,145.39,12.73224049]
[1726884782953,15.9987893,145.47,145.39,12.73224049]
[1726884782954,57.2987893,145.47,145.39,12.73224049]
[1726884783145,77.9487893,145.47,145.34,23.776884]
[1726884783344,77.9487893,145.47,145.34,36.50912449]
[1726884783853,41.3,145.44,145.34,12.73224049]
[1726884784063,0.25098,145.43,145.34,12.73224049]
[1726884785147,0.25098,145.41,145.33,34.44134049]
[1726884785744,0.25098,145.41,145.33,12.73224049]
[1726884785949,65.327864,145.41,145.32,0.3451553]
[1726884787168,6.8777,145.4,145.32,0.3451553]
[1726884787373,65.327864,145.39,145.32,0.3451553]
[1726884788046,24.027864,145.39,145.32,0.3451553]
[1726884788244,0.25098,145.37,145.32,0.3451553]
[1726884788455,24.027864,145.37,145.32,0.3451553]
[1726884788657,30.906864,145.37,145.32,0.3451553]
[1726884791946,24.027864,145.37,145.32,0.3451553]
[1726884792159,0.25098,145.35,145.32,0.3451553]
[1726884793180,27.13098,145.35,145.32,0.3451553]
[1726884793548,15.91988,145.33,145.32,0.3451553]
[1726884796551,39.696764,145.33,145.32,0.3451553]
[1726884797772,66.577564,145.33,145.32,0.3451553]
[1726884797971,93.443664,145.33,145.32,0.3451553]
[1726884798773,86.562864,145.33,145.32,0.3451553]
[1726884798970,65.912864,145.33,145.32,0.3451553]
[1726884799164,86.562864,145.33,145.32,0.3451553]
[1726884799361,65.912864,145.33,145.32,0.3451553]
[1726884799755,72.793664,145.33,145.32,0.3451553]
[1726884800266,15.6689,145.33,145.32,0.3451553]
[1726884800776,35.6689,145.33,145.32,0.3451553]
[1726884801458,87.227564,145.33,145.32,0.3451553]
[1726884803078,128.527564,145.33,145.32,0.3451553]
[1726884803854,121.646764,145.33,145.26,0.3140932]